[Event "Mitropa Cup Open 2022"]
[Site "Corte"]
[Date "2022.05.04"]
[Round "5.4"]
[White "Haring, Filip"]
[Black "Bouslimi, Nabil"]
[Result "1-0"]
[ECO "C02"]
[WhiteElo "2434"]
[BlackElo "2065"]
[Annotator "TA"]
[PlyCount "60"]
[EventDate "2022.04.30"]
[EventType "team-tourn"]
[EventCountry "FRA"]
[SourceTitle "playchess.com"]
[Source "ChessBase"]
[SourceQuality "1"]
[WhiteTeam "Slovakia"]
[BlackTeam "France"]
[WhiteTeamCountry "SVK"]
[BlackTeamCountry "FRA"]
[TimeControl "40/5400+30:1800+30"]

{[%evp 11,60,-7,21,-4,-19,-64,0,-70,-34,-60,21,-4,36,45,54,47,118,84,135,75,79,78,72,67,117,126,206,173,146,91,84,70,83,85,91,76,83,74,353,354,345,345,339,327,308,302,480,492,639,640,617]} 1. e4 {[%emt 0:00:06]} e6 {[%emt 0:00:12]} 2. d4 {[%emt 0:00:07]} d5 {[%emt 0:00:07]} 3. e5 {[%emt 0:00:08]} c5 {[%emt 0:00:23]} 4. c3 {[%emt 0:00:09]} Nc6 {[%emt 0:00:14]} 5. Nf3 {[%emt 0:00:10]} Bd7 {[%emt 0:00:11]} 6. Bd3 {[%emt 0:01:38]} Rc8 {[%emt 0:02:22]} 7. O-O {[%emt 0:01:02] C02: French: Advance Variation.} cxd4 {[%emt 0:03:19]} 8. a3 {[%emt 0:01:31]} Qb6 {[%emt 0:10:44]} (8... dxc3 $15 9. Nxc3 Nge7) 9. Re1 {[%emt 0:09:55]} (9. b4 $11) 9... Nge7 {[%emt 0:14:19]} 10. h4 {[%emt 0:12:44]} Nf5 {[%emt 0:10:52] [#]} ({Better is} 10... a6 $15) 11. b4 $146 {[%emt 0:09:06]} (11. Bxf5 $5 exf5 12. cxd4 $14) ({Predecessor:} 11. Bxf5 exf5 12. cxd4 Be6 13. Nc3 Na5 14. Na4 Qb3 15. Bd2 Qxd1 16. Rexd1 Nb3 17. Rab1 {½-½ (80) Osmak,I (2432)-Tikhonov,V (2216) Chess.com INT 2022}) 11... dxc3 {[%emt 0:03:51] White must now prevent ...Nfd4.} 12. Bxf5 {[%emt 0:00:20]} exf5 {[%emt 0:00:08]} 13. Nxc3 {[%emt 0:00:38] Threatens to win with e6.} d4 {[%emt 0:11:08]} (13... Be6 $14) 14. Nd5 {[%emt 0:02:43]} Qb5 {[%emt 0:04:24] [#]} (14... Qa6 $142) 15. Nf4 {[%emt 0:00:19] 0x0.001e08f0f45adp-1022s more active pieces. Pair of Knights!} ({White should try} 15. e6 $1 {[%cal Re6f7]} fxe6 16. Nf4) 15... Be6 $16 {[%emt 0:05:28]} 16. Ng5 {[%emt 0:01:47]} Nd8 {[%emt 0:05:08]} (16... Nxe5 $2 17. Nfxe6 fxe6 18. Nxe6 $18) 17. Qxd4 {[%emt 0:03:49]} b6 {[%emt 0:07:01]} (17... h6 $14 18. Ngxe6 Nxe6) 18. Qe3 {[%emt 0:15:35]} Be7 {[%emt 0:02:45]} (18... h6 $16 {was necessary.}) 19. Qg3 {[%emt 0:01:48]} g6 {[%emt 0:14:42]} 20. h5 {[%emt 0:02:16]} ({White should play} 20. Be3) 20... Qd7 {[%emt 0:00:49]} 21. Bb2 {[%emt 0:09:03] aiming for hxg6.} Bxg5 {[%emt 0:00:45]} 22. Qxg5 {[%emt 0:00:05]} Qe7 {[%emt 0:00:05]} 23. Qf6 {[%emt 0:02:32]} Qxf6 {[%emt 0:00:27]} 24. exf6 {[%emt 0:00:06]} Rc2 $2 {[%emt 0:01:12][%mdl 8192] This move loses the game for Black.} (24... O-O $16) 25. Nxe6 $18 {[%emt 0:02:25]} Nxe6 {[%emt 0:00:07] [#]} 26. Rxe6+ $1 {[%emt 0:00:04][%mdl 512]} fxe6 {[%emt 0:00:12]} 27. f7+ $1 {[%emt 0:00:05][%mdl 64] Discovered Attack} Kxf7 28. Bxh8 {[%emt 0:00:27] KRB-KR} g5 {[%emt 0:01:20]} (28... gxh5 {was worth a try.} 29. Rd1 Ke7) 29. a4 {[%emt 0:00:25][%cal Ba3a4,Ba4a5][%mdl 32]} Re2 {[%emt 0:00:15]} 30. a5 {[%emt 0:00:45]} e5 {[%emt 0:00:38] Weighted Error Value: White=0.21 (precise) /Black=0.59} 1-0

[Event "Mitropa Cup Open 2022"]
[Site "Corte"]
[Date "2022.05.04"]
[Round "5.5"]
[White "Erdos, Viktor"]
[Black "Koellner, Ruben Gideon"]
[Result "1-0"]
[ECO "C41"]
[WhiteElo "2604"]
[BlackElo "2440"]
[Annotator "TA"]
[PlyCount "45"]
[EventDate "2022.04.30"]
[EventType "team-tourn"]
[EventCountry "FRA"]
[SourceTitle "playchess.com"]
[Source "ChessBase"]
[SourceQuality "1"]
[TimeControl "40/5400+30:1800+30"]

{[%evp 9,45,22,14,20,22,33,31,29,40,43,41,40,40,51,99,103,91,95,104,95,116,105,97,116,100,105,197,208,178,191,446,230,225,202,217,199,949,927]} 1. e4 {[%emt 0:04:07]} d6 {[%emt 0:00:05]} 2. d4 {[%emt 0:00:08]} Nf6 {[%emt 0:00:05]} 3. Nc3 {[%emt 0:00:08]} e5 {[%emt 0:00:04]} 4. Nf3 {[%emt 0:00:06]} Nbd7 {[%emt 0:00:04]} 5. Rg1 {[%emt 0:00:11]} c6 {[%emt 0:00:17]} 6. g4 {[%emt 0:00:06] C41: Philidor Defence.} h6 {[%emt 0:00:02] [#]} 7. a3 $146 {[%emt 0:00:06]} ({Predecessor:} 7. h4 g6 8. g5 hxg5 9. Bxg5 Be7 10. Bc4 b5 11. Bb3 b4 12. Na4 Nxe4 13. Qe2 Nxg5 14. hxg5 {1-0 (39) Fedoseev,V (2704)-Bortnyk,O (2604) Chess.com INT 2022}) 7... exd4 {[%emt 0:22:43]} 8. Nxd4 {[%emt 0:01:17] White is slightly better.} Ne5 {[%emt 0:07:19]} 9. h3 {[%emt 0:00:16]} d5 {[%emt 0:01:12]} 10. exd5 {[%emt 0:01:16] aiming for Qe2.} Bc5 {[%emt 0:15:36] Threatens to win with ...Bxd4.} 11. Be3 {[%emt 0:03:22][%cal Od4c6] Nxc6! is the strong threat.} (11. Bf4 $2 Bxd4 12. Rg3 Qe7 $1 $19) 11... Qe7 {[%emt 0:09:26]} (11... O-O $1 $14) 12. Be2 {[%emt 0:07:24]} Nxd5 {[%emt 0:00:32]} 13. Nxd5 {[%emt 0:01:06]} cxd5 {[%emt 0:00:05]} 14. Qd2 $1 {[%emt 0:08:01]} Nc4 {[%emt 0:05:20]} 15. Bxc4 {[%emt 0:00:39]} dxc4 {[%emt 0:00:04]} 16. O-O-O {[%emt 0:00:50]} O-O {[%emt 0:02:22]} 17. Qc3 {[%emt 0:06:57] White is more active.} Re8 {[%emt 0:20:01]} (17... Qe5 $16) 18. g5 $1 $18 {[%emt 0:21:34]} ({Don't do} 18. Qxc4 $6 b6 $14) 18... h5 {[%emt 0:07:53]} 19. g6 {[%emt 0:00:49][%cal Oe3h6]} Bd6 $2 {[%emt 0:02:18] [#]} (19... Be6 20. Kb1 Rac8 21. Nxe6 Qxe6) 20. Nc6 $40 {[%emt 0:36:04][%mdl 128] White is out for blood.} bxc6 {[%emt 0:01:07]} 21. gxf7+ {[%emt 0:00:14]} Qxf7 {[%emt 0:00:13]} 22. Rxd6 {[%emt 0:00:04]} Bf5 $2 {[%emt 0:00:23]} (22... Be6 23. Bd4 (23. Rxc6 Rad8 $16) 23... g6 24. Rxc6 Kh7) 23. Rf6 {[%emt 0:01:29] Black got outplayed after the opening.  Weighted Error Value: White=0.12 (very precise) /Black=0.33} 1-0

[Event "Mitropa Cup Open 2022"]
[Site "Corte"]
[Date "2022.05.04"]
[Round "5.5"]
[White "Babula, Vlastimil"]
[Black "Baenziger, Fabian"]
[Result "0-1"]
[ECO "D43"]
[WhiteElo "2574"]
[BlackElo "2429"]
[Annotator "TA"]
[PlyCount "86"]
[EventDate "2022.04.30"]
[EventType "team-tourn"]
[EventCountry "FRA"]
[SourceTitle "playchess.com"]
[Source "ChessBase"]
[SourceQuality "1"]
[TimeControl "40/5400+30:1800+30"]

{[%evp 17,86,0,20,0,0,0,0,0,0,-2,0,7,50,53,59,52,100,115,112,108,115,0,0,0,122,98,101,98,113,100,129,82,87,-35,-22,-43,-37,-55,-37,-117,-120,-148,-143,-126,-99,-170,-170,-170,-170,-170,-171,-341,-299,-562,-562,-918,-939,-920,-591,-900,-869,-2393,-1479,-2341,-1698,-1691,-1390,-5455,-1059,-915,-850]} 1. d4 {[%emt 0:00:04]} d5 {[%emt 0:00:10]} 2. c4 {[%emt 0:00:11]} c6 {[%emt 0:00:21]} 3. Nf3 {[%emt 0:00:12]} Nf6 {[%emt 0:00:06]} 4. Nc3 {[%emt 0:00:13]} e6 {[%emt 0:00:37]} 5. Bg5 {[%emt 0:00:33][%cal Bc1g5,Bg5h4,Bh4g3,Bg3e5][%mdl 32]} h6 {[%emt 0:00:33]} 6. Bh4 {[%emt 0:00:24]} dxc4 {[%emt 0:00:24]} 7. e4 {[%emt 0:00:17]} g5 {[%emt 0:00:25]} 8. Bg3 {[%emt 0:00:08]} b5 {[%emt 0:00:04]} 9. Be2 {[%emt 0:00:37]} Bb7 {[%emt 0:00:40]} 10. Qc2 {[%emt 0:00:29][%mdl 1024] White has compensation. D43: Semi-Slav: 5 Bg5 h6.} Nh5 $1 {[%emt 0:00:48][%mdl 4] is currently scoring better than 10...Nbd7.} 11. Be5 {[%emt 0:01:03]} Rg8 {[%emt 0:01:35]} 12. h4 $1 {[%emt 0:00:50] The position is equal.} g4 {[%emt 0:12:49]} 13. Nh2 {[%emt 0:01:19]} Nd7 {[%emt 0:00:24]} (13... Qxh4 14. g3 Qe7 15. Nxg4 Rxg4 16. Bxg4 $18) 14. Nxg4 {[%emt 0:10:10] [#]} Nxe5 $146 {[%emt 0:21:32]} ({Predecessor:} 14... Rxg4 15. Bxg4 Nxe5 16. dxe5 Nf4 17. Rd1 Nd3+ 18. Kf1 Qd4 19. Rh3 Rd8 20. Re3 Qxe5 21. Be2 Ba6 {½-½ (21) Pesa,L (2366)-Schmalz,P (2362) ICCF email 2019}) 15. dxe5 {[%emt 0:00:57]} Rxg4 {[%emt 0:03:08]} 16. Rd1 $1 {[%emt 0:03:41]} (16. Bxg4 Nf4 $11) 16... Qc7 {[%emt 0:00:19]} (16... Qe7 $1 $14 {is more appropriate.} 17. Bxg4 Nf4) 17. Bxg4 $16 {[%emt 0:00:43]} Nf4 {[%emt 0:00:02]} 18. O-O {[%emt 0:03:54]} Qxe5 {[%emt 0:02:46]} 19. b3 {[%emt 0:06:36]} (19. Qd2 Nd3 $15) ({Only move:} 19. g3 $16) 19... Bc5 $11 {[%emt 0:07:00]} 20. Ne2 {[%emt 0:19:40]} ({Of course not} 20. Qd2 Nd3 21. bxc4 bxc4 $17) 20... Ke7 {[%emt 0:09:02]} (20... Nd3 $1 $11 {remains equal.}) 21. Nxf4 $1 $16 {[%emt 0:05:59]} (21. bxc4 Rg8 22. Qd2 Bd6 23. Nxf4 Rxg4 $11) 21... Qxf4 {[%emt 0:08:54]} 22. Bh3 {[%emt 0:03:27]} Rg8 {[%emt 0:02:33]} 23. bxc4 b4 24. Qd2 {[%emt 0:11:52]} (24. Rd3 $142) 24... Bd6 {[%emt 0:05:28][%csl Gd6][%cal Rf4h2]} 25. Qxf4 {[%emt 0:04:23]} ({White should play} 25. e5 $16 Qxe5 26. g3) 25... Bxf4 $15 {[%emt 0:00:03]} 26. c5 {[%emt 0:10:32] Rd4 is the strong threat.} Ba6 {[%emt 0:02:45]} 27. Rfe1 {[%emt 0:00:19]} Be5 $1 {[%emt 0:00:28]} 28. f4 {[%emt 0:05:36] [#]} (28. g3 $15 Bc4 29. Re3) 28... Bc3 $1 $17 {[%emt 0:08:14] This bishop pair is nice.} ({Reject} 28... Bxf4 $6 29. e5 $11) 29. Kf2 {[%emt 0:07:32]} Bxe1+ {[%emt 0:07:25]} 30. Kxe1 {[%emt 0:00:12][%mdl 4096] Endgame KRB-KRB} Rd8 {Against Rd4} 31. Bg4 {[%emt 0:01:14] [#]} (31. Rxd8 $17 Kxd8 32. g4) 31... Bc4 $1 $19 {[%emt 0:00:25]} 32. Rxd8 {[%emt 0:02:21]} Kxd8 {[%emt 0:00:04] KB-KB} 33. Kd2 {[%emt 0:00:55]} Bxa2 {[%emt 0:01:33]} 34. Be2 $2 {[%emt 0:00:24]} (34. Bd1) 34... e5 {[%emt 0:03:00]} 35. f5 {[%emt 0:00:11]} (35. fxe5 {was necessary.} Bb1 36. Ke3) 35... Bb1 {[%emt 0:00:42] Black is clearly winning.} 36. Bf3 {[%emt 0:00:51]} a5 {[%emt 0:00:50][%cal Ba7a5,Ba5a4,Ba4a3][%mdl 32] Threatens to win with ...a4.} 37. Kc1 {[%emt 0:00:02]} Bd3 {[%emt 0:00:04]} 38. Kd2 {[%emt 0:00:06]} Bb5 {[%emt 0:01:08]} 39. g4 {[%emt 0:00:22]} a4 {[%emt 0:02:37] White must now prevent ...a3.} 40. Bd1 {[%emt 0:01:37]} f6 {[%emt 0:00:51] Hoping for ...Kd7.} 41. Bc2 {[%emt 0:07:27]} b3 {[%emt 0:02:09]} 42. Bd1 {[%emt 0:01:21]} Bc4 {[%emt 0:00:07]} 43. Kc3 {[%emt 0:00:43] [#]} a3 $1 {[%emt 0:00:47] Weighted Error Value: White=0.62/Black=0.19 (very precise)} 0-1

[Event "Mitropa Cup Open 2022"]
[Site "Corte"]
[Date "2022.05.04"]
[Round "5.6"]
[White "Krastev, Alexander"]
[Black "Kozak, Adam"]
[Result "0-1"]
[ECO "B52"]
[WhiteElo "2402"]
[BlackElo "2535"]
[Annotator "TA"]
[PlyCount "54"]
[EventDate "2022.04.30"]
[EventType "team-tourn"]
[EventCountry "FRA"]
[SourceTitle "playchess.com"]
[Source "ChessBase"]
[SourceQuality "1"]
[TimeControl "40/5400+30:1800+30"]

{[%evp 17,54,0,0,0,0,0,0,0,0,0,32,29,25,-7,7,-21,25,21,23,33,21,0,5,0,14,14,23,8,3,0,0,0,0,0,0,0,0,-824,-802]} 1. e4 {[%emt 0:00:02]} c5 {[%emt 0:00:06]} 2. Nf3 {[%emt 0:00:10]} d6 {[%emt 0:05:38]} 3. Bb5+ {[%emt 0:00:16]} Bd7 {[%emt 0:03:37]} 4. Bxd7+ {[%emt 0:00:48]} Nxd7 {[%emt 0:00:08]} 5. O-O {[%emt 0:03:47]} Ngf6 {[%emt 0:00:11][%cal Bg8f6,Bf6e8,Be8c7][%mdl 32]} 6. Qe2 {[%emt 0:00:08]} e6 {[%emt 0:06:46]} 7. c3 {[%emt 0:01:20]} Be7 {[%emt 0:00:15]} 8. d4 {[%emt 0:00:18]} O-O {[%emt 0:00:21]} 9. e5 {[%emt 0:27:19]} Ne8 $1 {[%emt 0:01:14] 9...Ne8 is better than 9...Nd5.} 10. Rd1 {[%emt 0:02:36] B52: Sicilian: Moscow Variation with 3...Bd7.} cxd4 {[%emt 0:04:15]} 11. cxd4 {[%emt 0:00:17]} Nc7 {[%emt 0:02:11]} 12. Nc3 {[%emt 0:04:35] The position is equal.} Nb6 {[%emt 0:03:46]} 13. Ne4 {[%emt 0:02:15]} Nbd5 {[%emt 0:03:34] [#]} 14. h4 $146 {[%emt 0:03:52]} ({Predecessor:} 14. Rd3 Qd7 15. exd6 Bxd6 16. Ne5 Qe7 17. Rh3 g6 18. Bh6 Rfd8 19. Rf3 f6 20. Nc4 {1-0 (35) Djuric,S (2352)-Smolovic,M (2294) Belgrade 2018}) 14... h6 {[%emt 0:18:18]} 15. h5 {[%emt 0:03:07]} (15. Rd3 {is more complex.} Rc8 16. Rb3 dxe5 17. Nxe5 Nf6 18. Bxh6 gxh6 19. Rg3+) 15... f5 {[%emt 0:02:09]} 16. Nc3 {[%emt 0:13:26]} Nxc3 {[%emt 0:03:57]} (16... Rc8 $142) 17. bxc3 $11 {[%emt 0:00:11]} d5 {[%emt 0:00:04]} 18. Ne1 {[%emt 0:04:03]} Rc8 {[%emt 0:05:12]} 19. Rd3 {[%emt 0:02:32]} (19. Rb1 $5 {[%cal Rb1b7]}) 19... Bg5 {[%emt 0:05:54]} 20. f4 {[%emt 0:09:28]} Be7 {[%emt 0:00:23]} 21. Rb1 {[%emt 0:01:52] Against Nb5} b6 {[%emt 0:01:51]} 22. Nc2 {[%emt 0:02:47]} Qe8 {[%emt 0:01:39]} 23. g4 {[%emt 0:07:55]} fxg4 {[%emt 0:05:34]} 24. Qxg4 {[%emt 0:00:02]} Rf5 {[%emt 0:01:23]} 25. Rh3 {[%emt 0:00:04]} Qf7 {[%emt 0:11:47]} 26. Bd2 {[%emt 0:00:20]} Rf8 {[%emt 0:01:15][%cal Oe7g5]} 27. Rf1 $2 {[%emt 0:04:10][%mdl 8192] [#]} (27. Qg6 $11) 27... Rg5 $1 {[%emt 0:00:40][%mdl 512] Weighted Error Value: White=0.54/Black=0.06 (flawless)} 0-1

[Event "Mitropa Cup Open 2022"]
[Site "Corte"]
[Date "2022.05.04"]
[Round "5.7"]
[White "Nemeth, Miklos"]
[Black "Koelle, Tobias"]
[Result "1/2-1/2"]
[ECO "B53"]
[WhiteElo "2334"]
[BlackElo "2384"]
[Annotator "TA"]
[PlyCount "72"]
[EventDate "2022.04.30"]
[EventType "team-tourn"]
[EventCountry "FRA"]
[SourceTitle "playchess.com"]
[Source "ChessBase"]
[SourceQuality "1"]
[TimeControl "40/5400+30:1800+30"]

{[%evp 9,72,7,14,12,12,0,0,0,0,0,8,0,0,-16,0,-30,0,0,8,-40,-32,-43,-41,-33,-2,-6,-9,-35,-10,-92,-90,-81,-38,-37,-30,-45,-35,-72,-70,-73,-58,-82,-65,-88,-29,-26,-16,-16,0,-44,-34,-108,-28,-39,-29,-30,-35,-29,-6,-27,0,-27,0,-34,0]} 1. e4 {[%emt 0:00:03]} c5 {[%emt 0:00:08]} 2. Nf3 {[%emt 0:00:03]} d6 {[%emt 0:00:07]} 3. d4 {[%emt 0:00:03]} cxd4 {[%emt 0:00:07]} 4. Qxd4 {[%emt 0:00:03]} Nc6 {[%emt 0:00:08]} 5. Qe3 {[%emt 0:00:04]} g6 {[%emt 0:03:11]} 6. Be2 {[%emt 0:01:20] B53: Sicilian: 2...d6: Lines with Qxd4.} Bg7 {[%emt 0:02:49]} 7. O-O {[%emt 0:00:59]} Nf6 {[%emt 0:01:00][%cal Bg8f6,Bf6d7,Bd7c5][%mdl 32]} 8. h3 {[%emt 0:00:33] The position is equal.} O-O {[%emt 0:01:34]} 9. Rd1 {[%emt 0:00:07]} Nd7 {[%emt 0:02:29]} 10. Nc3 {[%emt 0:03:20]} a6 {[%emt 0:11:22] [#]} 11. Bf1 $146 {[%emt 0:04:59]} ({Predecessor:} 11. a4 b6 12. Qf4 Nb4 13. Qh4 Nxc2 14. Rb1 Ne5 15. Nxe5 Bxe5 16. Nd5 Re8 17. Bd3 {½-½ (61) Harikrishna,P (2725)-Korobov,A (2685) Struga 2021}) 11... b5 {[%emt 0:02:04]} 12. Nd5 {[%emt 0:01:45]} Rb8 {[%emt 0:06:38]} 13. c3 {[%emt 0:05:07]} Nc5 {[%emt 0:09:32]} 14. Bd2 {[%emt 0:06:38]} (14. Qe2 $11 {deserves consideration.}) 14... Bb7 $15 {[%emt 0:02:56]} 15. Be1 {[%emt 0:20:20]} e6 {[%emt 0:05:49]} 16. Nf4 {[%emt 0:03:04]} Qc7 {[%emt 0:02:42]} 17. Nd3 {[%emt 0:01:42]} Nxd3 {[%emt 0:04:05]} 18. Rxd3 {[%emt 0:03:58]} Na5 19. Rad1 {[%emt 0:00:47]} (19. b3 $1 $11 {keeps the balance.}) 19... Nc4 $36 {[%emt 0:04:40][%csl LRb2,LRe3][%mdl 2048] Black is on the roll.} 20. Qe2 {[%emt 0:00:47]} d5 {[%emt 0:04:41]} 21. exd5 {[%emt 0:00:30]} Bxd5 {[%emt 0:00:30]} 22. b3 {[%emt 0:00:42]} Nb6 {[%emt 0:00:27]} 23. Nd2 {[%emt 0:13:13][%cal Oc3c4,Bf3d2,Bd2e4,Be4g3,Bg3e2,Be2f4][%mdl 32]} Rbc8 {[%emt 0:01:46]} 24. Ne4 {[%emt 0:03:02]} Qc6 {[%emt 0:01:16]} 25. Ng3 {[%emt 0:03:08]} Qb7 {[%emt 0:00:37]} 26. f3 {[%emt 0:01:17]} Rc6 {[%emt 0:02:54]} (26... Nd7 $17) 27. Qe3 $11 {[%emt 0:02:14]} Rfc8 {[%emt 0:00:53]} 28. Ne2 {[%emt 0:03:21]} Rf8 {[%emt 0:11:26]} 29. Nf4 {[%emt 0:04:43]} Bh6 {[%emt 0:02:40] And now ...Qb8 would win.} 30. Qd4 {[%emt 0:00:25] [#]} (30. Bg3 $15) 30... Rfc8 {[%emt 0:01:08]} ({Better is} 30... Bc4 $1 $17 {[%cal Rc4d3][%mdl 512]} 31. Nxg6 (31. bxc4 $2 Rxc4 32. Qf2 Bxf4 $19) 31... fxg6 32. bxc4 bxc4) 31. Ne2 {[%emt 0:01:13]} Nd7 {[%emt 0:02:13]} 32. Qh4 {[%emt 0:00:09]} Bg7 {[%emt 0:00:40]} 33. Nf4 {[%emt 0:03:25]} Nb6 {[%emt 0:00:58]} 34. Ne2 {[%emt 0:00:23]} (34. c4 $5 bxc4 35. bxc4 Rxc4 36. Rxd5 Nxd5 37. Bxc4 Rxc4 38. Qd8+ Bf8 39. Nxd5 exd5 40. Qxd5 Qxd5 41. Rxd5 $11) 34... Nd7 {[%emt 0:02:39]} 35. Nf4 {[%emt 0:00:06]} Nb6 {[%emt 0:00:46]} 36. Ne2 {[%emt 0:00:05]} Nd7 {[%emt 0:05:39] Weighted Error Value: White=0.16 (very precise) /Black=0.15 (very precise)} 1/2-1/2

[Event "Mitropa Cup Open 2022"]
[Site "Corte"]
[Date "2022.05.05"]
[Round "6.1"]
[White "Pechac, Jergus"]
[Black "Erdos, Viktor"]
[Result "1/2-1/2"]
[ECO "A34"]
[WhiteElo "2597"]
[BlackElo "2587"]
[Annotator "TA"]
[PlyCount "123"]
[EventDate "2022.04.30"]
[EventType "team-tourn"]
[EventCountry "FRA"]
[SourceTitle "playchess.com"]
[Source "ChessBase"]
[SourceQuality "1"]
[WhiteTeam "Slovakia"]
[BlackTeam "Hungary"]
[WhiteTeamCountry "SVK"]
[BlackTeamCountry "HUN"]
[TimeControl "40/5400+30:1800+30"]

{[%evp 19,123,19,26,29,18,19,48,26,32,25,89,106,101,91,97,82,114,53,68,69,58,58,70,73,58,54,58,51,66,61,114,114,118,117,117,119,119,116,116,116,119,119,124,122,123,118,162,162,162,162,354,354,354,354,272,123,682,123,691,123,123,123,123,123,123,123,123,123,123,123,123,123,123,123,123,123,123,123,123,123,123,123,123,123,136,123,136,136,136,136,136,123,123,-429,-429,-429,-429,-429,-429,-429,-429,-429,-429,-429,0,-8]} 1. Nf3 {[%emt 0:00:03]} Nf6 {[%emt 0:04:28]} 2. c4 {[%emt 0:00:06]} c5 {[%emt 0:00:20]} 3. Nc3 {[%emt 0:00:06]} d5 {[%emt 0:00:05]} 4. cxd5 {[%emt 0:00:05]} Nxd5 {[%emt 0:00:05]} 5. d4 {[%emt 0:00:13]} Nxc3 {[%emt 0:00:49]} 6. bxc3 {[%emt 0:00:06]} g6 {[%emt 0:00:05]} 7. e3 {[%emt 0:00:06]} Bg7 {[%emt 0:00:04]} 8. Bb5+ {[%emt 0:00:06]} Bd7 {[%emt 0:00:15]} 9. Be2 {[%emt 0:00:17]} O-O {[%emt 0:03:01]} 10. O-O {[%emt 0:00:06]} Nc6 {[%emt 0:00:46]} 11. Rb1 {[%emt 0:00:43] A34: Symmetrical English: 2 Nc3, lines with ...d5.} Qc7 {[%emt 0:10:05]} 12. e4 {[%emt 0:00:07]} Rfd8 {[%emt 0:03:07] [#]} 13. d5 $146 {[%emt 0:01:06] White is slightly better.} ({Predecessor:} 13. Be3 Bg4 14. d5 e6 15. Bg5 Rd7 16. Qb3 Na5 17. Qa4 h6 18. Bh4 exd5 19. exd5 {1-0 (54) Ranieri,A (1775)-Cesaro,M (1878) ICCF email 2016}) 13... Ne5 {[%emt 0:14:11]} 14. Ne1 {[%emt 0:02:59] aiming for f4.} c4 {[%emt 0:18:02]} (14... b5 $11 {remains equal.}) 15. f4 $1 $16 {[%emt 0:00:57]} Nd3 {[%emt 0:00:17]} 16. Nxd3 {[%emt 0:00:06]} cxd3 {[%emt 0:00:09]} 17. Qxd3 {[%emt 0:00:06]} Qxc3 {[%emt 0:04:32]} 18. Rxb7 {[%emt 0:21:02]} (18. Ba3 $16) 18... Bd4+ {[%emt 0:09:33]} 19. Kh1 {[%emt 0:00:06] Qxc3 is the strong threat.} Qxd3 {[%emt 0:00:28]} 20. Bxd3 {[%emt 0:00:02]} Rab8 {[%emt 0:00:33]} 21. Rxb8 {[%emt 0:06:33]} Rxb8 {[%emt 0:01:05]} 22. Ba3 {[%emt 0:00:05]} e6 {[%emt 0:07:46]} 23. Bc4 {[%emt 0:11:40]} exd5 {[%emt 0:07:23]} 24. Bxd5 {[%emt 0:00:20]} Bb5 {[%emt 0:03:14]} ({Black should try} 24... Be3 $14) 25. Rb1 {[%emt 0:04:01]} Rb6 {[%emt 0:04:03]} 26. h3 {[%emt 0:06:51]} Bd3 {[%emt 0:04:04]} 27. Rd1 {[%emt 0:04:11]} Rb1 {[%emt 0:00:23]} 28. Rxb1 {[%emt 0:00:11]} Bxb1 {[%emt 0:00:02][%mdl 4096] Endgame KBB-KBB} 29. g4 {[%emt 0:00:40]} h6 {[%emt 0:02:27]} 30. Kg2 {[%emt 0:00:20]} Kg7 {[%emt 0:00:56]} 31. Kf3 {[%emt 0:00:51]} g5 {[%emt 0:00:42]} 32. Bc1 {[%emt 0:04:01]} Kg6 {[%emt 0:01:39]} 33. Be3 {[%emt 0:19:20]} Bxe3 {[%emt 0:00:27]} 34. Kxe3 $18 {[%emt 0:00:03] Black must now prevent f5+. KB-KB} Kf6 {[%emt 0:01:44]} (34... gxf4+ 35. Kxf4 f6) 35. e5+ {[%emt 0:03:35]} Ke7 {[%emt 0:00:04]} 36. f5 {[%emt 0:00:32]} f6 {[%emt 0:00:05]} 37. Kd4 {[%emt 0:03:33]} (37. exf6+ $1 $18 {and the rest is easy.} Kxf6 38. Kd4) 37... Bc2 $2 {[%emt 0:00:36][%mdl 8192] [#]} (37... fxe5+ $16 38. Kxe5 Bd3 39. f6+ Kf8) 38. Bb3 $2 {[%emt 0:00:46]} (38. exf6+ $1 $18 Kxf6 39. Bb3) 38... Bb1 $2 {[%emt 0:00:05][%mdl 8192]} (38... fxe5+ $16 39. Kxe5 Bd3) 39. a3 $2 {[%emt 0:06:18]} (39. exf6+ $18 {has better winning chances.} Kxf6 40. a4) 39... fxe5+ $16 {[%emt 0:01:43]} 40. Kxe5 {[%emt 0:00:07]} Bd3 {[%emt 0:00:17]} 41. f6+ {[%emt 0:32:19]} Kf8 {[%emt 0:01:50]} 42. Bd5 {[%emt 0:00:00]} Bf1 {[%emt 0:11:10]} 43. Kf5 {[%emt 0:00:00] Threatening mate with Kg6.} Bxh3 {[%emt 0:00:07] [#]} 44. Kg6 $1 {[%emt 0:00:00] White wants to mate with Be6. White is more active.} Bxg4 {[%emt 0:00:06] Strongly threatening ...Be2.} 45. Kxh6 {[%emt 0:00:00]} Bd7 {[%emt 0:04:12]} 46. Kxg5 {[%emt 0:00:00]} Be8 {[%emt 0:03:41]} 47. Kf5 {[%emt 0:00:00]} a5 {[%emt 0:01:17]} 48. Ke5 {[%emt 0:00:00]} Bf7 {[%emt 0:01:32]} 49. Bf3 {[%emt 0:00:00]} Bb3 {[%emt 0:01:11]} 50. Bh5 {[%emt 0:00:00]} Bf7 {[%emt 0:00:13]} 51. Bd1 {[%emt 0:00:00]} Bg6 {[%emt 0:02:42]} 52. Be2 {[%emt 0:00:00]} Bc2 {[%emt 0:04:02]} 53. Bh5 {[%emt 0:00:00]} Bb3 {[%emt 0:00:12]} 54. Kd6 {[%emt 0:00:00]} Bf7 {[%emt 0:00:47]} 55. Bd1 {[%emt 0:00:00]} Ba2 {[%emt 0:00:43]} 56. Bb3 $2 {[%emt 0:02:04][%mdl 8192]} Bxb3 $19 {[%emt 0:00:08]} 57. a4 {[%emt 0:00:04]} Bxa4 {[%emt 0:00:08]} ({Worse is} 57... Kf7 58. Kc6 $11) 58. f7 {[%emt 0:00:14]} Kxf7 {[%emt 0:03:06]} 59. Kc5 {[%emt 0:00:08][%cal Bd6c5,Bc5b5,Bb5b4,Bb4a3][%mdl 32]} Bb3 {[%emt 0:00:15]} 60. Kb5 {[%emt 0:00:05]} a4 {[%emt 0:00:04] ( -> ...a3)} 61. Kb4 {[%emt 0:00:05]} a3 $2 {[%emt 0:00:03]} 62. Kxa3 {[%emt 0:00:03] Weighted Error Value: White=0.52/Black=0.47} 1/2-1/2